bitfinex/quotes_BTCUSD_20250822
["timestamp","ask_amount","ask_price","bid_price","bid_amount"]
[1755858061916,6.32624029,112980.0,112970.0,0.05246856]
[1755858062124,6.66624029,112980.0,112970.0,0.05246856]
[1755858062331,6.75210994,112980.0,112970.0,0.05246856]
[1755858062891,6.75310994,112980.0,112970.0,0.05246856]
[1755858064439,6.60382994,112980.0,112970.0,0.05246856]
[1755858064658,6.75310994,112980.0,112970.0,0.05246856]
[1755858064902,6.66624029,112980.0,112970.0,0.05246856]
[1755858065834,6.51696029,112980.0,112970.0,0.05246856]
[1755858066029,6.66628029,112980.0,112970.0,0.05246856]
[1755858066586,6.66003688,112980.0,112970.0,0.05246856]
[1755858066790,6.7531129,112980.0,112970.0,0.05246856]
[1755858068889,0.51703815,112970.0,112960.0,0.03520833]
[1755858069036,6.32959908,112970.0,112960.0,0.03520833]
[1755858069476,6.35623008,112970.0,112960.0,0.03520833]
[1755858069697,6.41312754,112970.0,112960.0,0.03520833]
[1755858070019,6.44484592,112970.0,112960.0,0.03520833]
[1755858070825,6.44584592,112970.0,112960.0,0.05265735]
[1755858071206,6.42930047,112970.0,112960.0,0.05265735]
[1755858073022,6.42934047,112970.0,112960.0,0.05265735]
[1755858075427,6.4458764,112970.0,112960.0,0.05265735]
[1755858075816,6.2965564,112970.0,112960.0,0.05265735]
[1755858076030,5.61755616,112970.0,112960.0,0.05265735]
[1755858076358,6.4458764,112970.0,112960.0,0.05265735]
[1755858077242,6.2965564,112970.0,112960.0,0.05265735]
[1755858077462,6.4458764,112970.0,112960.0,0.05265735]
[1755858077679,6.41177336,112970.0,112960.0,0.05265735]
[1755858080191,5.73277312,112970.0,112960.0,0.05265735]
[1755858080484,6.41797751,112970.0,112960.0,0.05265735]
[1755858080661,6.43183868,112970.0,112960.0,0.05265735]
[1755858080899,6.4090986,112970.0,112960.0,0.05265735]
[1755858081105,6.43184759,112970.0,112960.0,0.05265735]
[1755858082305,6.77171599,112970.0,112960.0,0.05265735]
[1755858082515,7.79058463,112970.0,112960.0,0.05265735]
[1755858083175,7.79058463,112970.0,112960.0,0.04015735]
[1755858084219,7.75933398,112970.0,112960.0,0.04015735]
[1755858085023,7.75933398,112970.0,112960.0,0.04309735]
[1755858085228,7.75314542,112970.0,112960.0,0.04309735]
[1755858085365,7.75936284,112970.0,112960.0,0.04309735]
[1755858085580,7.75936284,112970.0,112960.0,0.04015735]
[1755858086554,7.61004284,112970.0,112960.0,0.04309735]
[1755858086779,7.75936284,112970.0,112960.0,0.04309735]
[1755858087223,6.66842381,112970.0,112960.0,0.04505735]
[1755858087651,6.11136093,112970.0,112960.0,0.04505735]
[1755858087903,6.23404993,112970.0,112960.0,0.04505735]
[1755858088310,6.22018876,112970.0,112960.0,0.04505735]
[1755858088732,6.19741091,112970.0,112960.0,0.04505735]
[1755858089385,6.21399127,112970.0,112960.0,0.04505735]
[1755858089608,6.22020879,112970.0,112960.0,0.04505735]
[1755858090148,6.19741091,112970.0,112960.0,0.04505735]
[1755858090355,5.85763885,112970.0,112960.0,0.04505735]
[1755858090761,5.70831885,112970.0,112960.0,0.04505735]
[1755858090971,5.77643885,112970.0,112960.0,0.04505735]
[1755858091178,5.79029937,112970.0,112960.0,0.04505735]
[1755858091931,5.80687827,112970.0,112960.0,0.04505735]
[1755858092147,5.80587827,112970.0,112960.0,0.04505735]
[1755858092347,0.93849237,112970.0,112960.0,0.04505735]
[1755858092950,1.01973237,112970.0,112960.0,0.04505735]
[1755858093374,0.87037237,112970.0,112960.0,0.04605735]
[1755858093599,1.01973237,112970.0,112960.0,0.04605735]
[1755858093942,1.01973237,112970.0,112960.0,0.04805735]
[1755858094143,1.01973237,112970.0,112960.0,0.04705735]
[1755858094574,1.01973237,112970.0,112960.0,0.04905735]
[1755858096239,1.00587185,112970.0,112960.0,0.04905735]
[1755858097431,0.51651185,112970.0,112960.0,0.04905735]
[1755858097633,0.51703815,112970.0,112960.0,0.05796319]
[1755858097846,0.8288337,112970.0,112960.0,0.23501701]
[1755858098261,0.8288337,112970.0,112960.0,0.22615117]
[1755858098473,0.3394737,112970.0,112960.0,0.22615117]
[1755858098880,0.17703815,112970.0,112960.0,0.22615117]
[1755858099083,0.5170706,112980.0,112970.0,0.01744902]
[1755858099287,1.345458,112980.0,112970.0,0.02456199]
[1755858099533,1.345418,112980.0,112970.0,0.02456199]
[1755858099759,1.35927677,112980.0,112970.0,0.02456199]
[1755858100592,1.35927677,112980.0,112970.0,0.02556199]
[1755858101016,1.35927677,112980.0,112970.0,0.02334902]
[1755858101211,1.35927677,112980.0,112970.0,0.02434902]
[1755858101417,1.35927677,112980.0,112970.0,0.02656199]
[1755858101621,1.35927677,112980.0,112970.0,0.02660199]
[1755858102035,1.35927677,112980.0,112970.0,0.02438902]
[1755858103303,1.35927677,112980.0,112970.0,0.02660199]
[1755858103717,0.68032937,112980.0,112970.0,0.02660199]
[1755858103928,0.53092937,112980.0,112970.0,0.0492424]
[1755858104125,1.35923677,112980.0,112970.0,0.02660199]
[1755858104548,1.35923677,112980.0,112970.0,0.02438902]
[1755858104958,1.35923677,112980.0,112970.0,0.02660199]
[1755858105333,1.35923677,112980.0,112970.0,0.02438902]
[1755858108073,1.35923677,112980.0,112970.0,0.02660199]
[1755858109343,1.345378,112980.0,112970.0,0.02660199]
[1755858109759,1.345378,112980.0,112970.0,0.02438902]
[1755858109929,1.35923649,112980.0,112970.0,0.02438902]
[1755858110235,1.36003649,112980.0,112970.0,0.02660199]
[1755858110644,1.20987649,112980.0,112970.0,0.02660199]
[1755858110842,1.35999649,112980.0,112970.0,0.02660199]
[1755858111456,0.53092909,112980.0,112970.0,0.02660199]
[1755858111664,1.35995649,112980.0,112970.0,0.02660199]
[1755858115585,1.0066243,112980.0,112970.0,0.02660199]
[1755858116713,1.346098,112980.0,112970.0,0.02660199]
[1755858118327,1.34586878,112980.0,112970.0,0.02660199]
[1755858119595,1.359727,112980.0,112970.0,0.02660199]
[1755858120223,1.359727,112980.0,112970.0,0.02438902]
[1755858120398,1.69908609,112980.0,112970.0,0.02438902]
[1755858120607,1.69892609,112980.0,112970.0,0.02438902]
[1755858122345,1.15264913,112970.0,112960.0,0.17266833]
[1755858122669,1.83347731,112970.0,112960.0,0.11173308]
[1755858123691,1.83136731,112970.0,112960.0,0.11173308]
[1755858123894,1.83136731,112970.0,112960.0,0.11373308]
[1755858124319,1.83136731,112970.0,112960.0,0.11573308]
[1755858124546,1.83136731,112970.0,112960.0,0.16810526]
[1755858124547,1.98128731,112970.0,112960.0,0.16810526]
[1755858126162,1.98339731,112970.0,112960.0,0.16810526]
[1755858127354,1.98327731,112970.0,112960.0,0.16810526]
[1755858127563,2.01762796,112970.0,112960.0,0.07608051]
[1755858127760,1.98637731,112970.0,112960.0,0.07608051]
[1755858130779,1.98327731,112970.0,112960.0,0.07608051]
[1755858131599,2.32637731,112970.0,112960.0,0.07608051]
[1755858131808,2.35762796,112970.0,112960.0,0.04419735]
[1755858132668,2.44449761,112970.0,112960.0,0.04419735]
[1755858133084,2.41324696,112970.0,112960.0,0.04419735]
[1755858133958,2.32637731,112970.0,112960.0,0.04419735]
[1755858135569,2.6657364,112970.0,112960.0,0.04419735]
[1755858135778,2.69698705,112970.0,112960.0,0.04419735]
[1755858136077,2.48903475,112970.0,112960.0,0.04419735]
[1755858136312,2.4577841,112970.0,112960.0,0.04419735]
[1755858137279,2.4844101,112970.0,112960.0,0.04419735]
[1755858138279,2.14540173,112970.0,112960.0,0.04419735]
[1755858139274,2.15926178,112970.0,112960.0,0.04419735]
[1755858141642,2.24613143,112970.0,112960.0,0.04419735]
[1755858141777,2.15926178,112970.0,112960.0,0.04419735]
[1755858142602,2.15926178,112970.0,112960.0,0.04219735]
[1755858143408,2.15926178,112970.0,112960.0,0.04019735]
[1755858143873,2.16026178,112970.0,112960.0,0.04019735]
[1755858145065,2.19151243,112970.0,112960.0,0.04019735]
[1755858145268,2.27838208,112970.0,112960.0,0.04019735]
[1755858147140,2.24713143,112970.0,112960.0,0.04019735]
[1755858147344,2.24673143,112970.0,112960.0,0.04019735]
[1755858147694,2.15986178,112970.0,112960.0,0.04019735]
[1755858148200,2.01046178,112970.0,112960.0,0.04019735]
[1755858148515,2.15986178,112970.0,112960.0,0.04019735]
[1755858150288,7.01066878,112970.0,112960.0,0.04019735]
[1755858152370,7.01070878,112970.0,112960.0,0.04019735]
[1755858152768,7.09757843,112970.0,112960.0,0.04019735]
[1755858153204,6.94813843,112970.0,112960.0,0.04019735]
[1755858153432,7.09753843,112970.0,112960.0,0.04019735]
[1755858155803,6.94813843,112970.0,112960.0,0.04019735]
[1755858156074,7.09753843,112970.0,112960.0,0.04019735]
[1755858156829,7.08367838,112970.0,112960.0,0.04019735]
[1755858158268,7.08057838,112970.0,112960.0,0.04019735]
[1755858158744,7.42019461,112970.0,112960.0,0.04019735]
[1755858159794,7.43405544,112970.0,112960.0,0.04019735]
[1755858160407,7.19778579,112970.0,112960.0,0.04019735]
[1755858160558,7.34718579,112970.0,112960.0,0.04229735]
[1755858160760,7.34718579,112970.0,112960.0,0.04019735]
[1755858162155,7.19778579,112970.0,112960.0,0.04019735]
[1755858162309,7.34718579,112970.0,112960.0,0.04536735]
[1755858162511,6.85611408,112970.0,112960.0,0.04536735]
[1755858162724,7.00551408,112970.0,112960.0,0.04536735]
[1755858162939,7.34507579,112970.0,112960.0,0.04536735]
[1755858164246,7.10909485,112970.0,112960.0,0.04536735]
[1755858165311,7.1318668,112970.0,112960.0,0.04536735]
[1755858165697,6.9824668,112970.0,112960.0,0.04536735]
[1755858165896,7.1318668,112970.0,112960.0,0.04536735]
[1755858167134,7.13186929,112970.0,112960.0,0.04536735]
[1755858168020,7.13187289,112970.0,112960.0,0.04536735]
[1755858169280,7.11801206,112970.0,112960.0,0.04536735]
[1755858169672,6.77845035,112970.0,112960.0,0.04536735]
[1755858169895,1.75546531,112970.0,112960.0,0.04536735]
[1755858170095,1.90486531,112970.0,112960.0,0.04536735]
[1755858170314,1.87823931,112970.0,112960.0,0.04536735]
[1755858171101,1.53823931,112970.0,112960.0,0.04536735]
[1755858171301,1.53823931,112970.0,112960.0,0.07142911]
[1755858171506,1.53823931,112970.0,112960.0,0.04758052]
[1755858171711,1.38883931,112970.0,112960.0,0.04758052]
[1755858171911,1.87823931,112970.0,112960.0,0.04758052]
[1755858172300,1.40313697,112970.0,112960.0,0.04758052]
[1755858172501,1.55253697,112970.0,112960.0,0.04758052]
[1755858172899,1.89209868,112970.0,112960.0,0.07364227]
[1755858173356,1.74269868,112970.0,112960.0,0.07364227]
[1755858173578,1.74269868,112970.0,112960.0,0.0714291]
[1755858173732,1.74169868,112970.0,112960.0,0.0714291]
[1755858173937,1.89105868,112970.0,112960.0,0.0724291]
[1755858174138,1.89105868,112970.0,112960.0,0.0734291]
[1755858174334,1.89105868,112970.0,112960.0,0.0724291]
[1755858174548,1.89105868,112970.0,112960.0,0.04736735]
[1755858175016,1.89105868,112970.0,112960.0,0.04936735]
[1755858175499,1.21193526,112970.0,112960.0,0.04936735]
[1755858175700,1.89105868,112970.0,112960.0,0.04936735]
[1755858179202,1.89105868,112970.0,112960.0,0.10767926]
[1755858179823,1.89105868,112970.0,112960.0,0.05158052]
[1755858180232,1.89105868,112970.0,112960.0,0.22863434]
[1755858180460,0.88509882,112970.0,112960.0,0.22642117]
[1755858180651,0.88509882,112970.0,112960.0,0.31330592]
[1755858181262,0.54553711,112970.0,112960.0,0.33992592]
[1755858181469,0.88509882,112970.0,112960.0,0.33992592]
[1755858182853,1.06213697,112970.0,112960.0,0.33992592]
[1755858183060,1.40169868,112970.0,112960.0,0.33992592]
[1755858183273,1.06213697,112970.0,112960.0,0.33992592]
[1755858184376,1.06213697,112970.0,112960.0,0.1628721]
[1755858184631,1.40169868,112970.0,112960.0,0.1628721]
[1755858186554,1.38783931,112970.0,112960.0,0.33992592]
[1755858187091,0.87123945,112970.0,112960.0,0.33992592]
[1755858187657,0.87123945,112970.0,112960.0,0.42679557]
[1755858188057,0.87123945,112970.0,112960.0,0.33992592]
[1755858188671,0.87123945,112970.0,112960.0,0.48924592]
[1755858189076,0.87123945,112970.0,112960.0,0.52990466]
[1755858189331,0.88509809,112970.0,112960.0,0.52990466]
[1755858189508,1.06213624,112970.0,112960.0,0.35285084]
[1755858189755,1.06213624,112970.0,112960.0,0.52990466]
[1755858190381,1.40169795,112970.0,112960.0,0.35285084]
[1755858190612,1.40169795,112970.0,112960.0,0.52990466]
[1755858190791,1.40169795,112970.0,112960.0,0.35285084]
[1755858191329,1.40169795,112970.0,112960.0,0.33540182]
[1755858191739,1.06213624,112970.0,112960.0,0.20353084]
[1755858192117,1.06213624,112970.0,112960.0,0.52990466]
[1755858192277,1.06213624,112970.0,112960.0,0.35285084]
[1755858192905,1.06213624,112970.0,112960.0,0.52990466]
[1755858193112,1.06213624,112970.0,112960.0,0.35285084]
[1755858194098,1.06426624,112970.0,112960.0,0.07081735]
[1755858194306,1.06426624,112970.0,112960.0,0.22013735]
[1755858194915,1.06426624,112970.0,112960.0,0.20268833]
[1755858195528,1.06426624,112970.0,112960.0,0.07081735]
[1755858195743,1.55629795,112970.0,112960.0,0.07081735]
[1755858197240,1.21673624,112970.0,112960.0,0.07081735]
[1755858197788,1.55629795,112970.0,112960.0,0.07081735]
[1755858198687,1.89629795,112970.0,112960.0,0.07081735]
[1755858198903,1.89629795,112970.0,112960.0,0.04419735]
[1755858199761,1.89629795,112970.0,112960.0,0.04219735]
[1755858199982,1.89629795,112970.0,112960.0,0.04019735]
[1755858200221,1.89629795,112970.0,112960.0,0.04219735]
[1755858202916,1.89314795,112970.0,112960.0,0.04219735]
[1755858203607,1.89608795,112970.0,112960.0,0.04219735]
[1755858205115,1.89314795,112970.0,112960.0,0.04219735]
[1755858207400,2.01420825,112970.0,112960.0,0.04219735]
[1755858207598,2.04083225,112970.0,112960.0,0.04219735]
[1755858207826,2.02697361,112970.0,112960.0,0.04219735]
[1755858208182,1.94010396,112970.0,112960.0,0.04219735]
[1755858209563,1.90885331,112970.0,112960.0,0.04219735]
[1755858209970,1.90885331,112970.0,112960.0,0.04019735]
[1755858210512,1.92371384,112970.0,112960.0,0.04019735]
[1755858211813,2.26227555,112970.0,112960.0,0.02274833]
[1755858212059,2.3491452,112970.0,112960.0,0.04219735]
[1755858212486,2.2679452,112970.0,112960.0,0.04219735]
[1755858212688,2.4172652,112970.0,112960.0,0.04219735]
[1755858214032,7.2680722,112970.0,112960.0,0.04219735]
[1755858214174,7.35619426,112970.0,112960.0,0.04219735]
[1755858214559,7.33963362,112970.0,112960.0,0.04119735]
[1755858214761,7.35618759,112970.0,112960.0,0.04019735]
[1755858214961,7.35918759,112970.0,112960.0,0.04019735]
[1755858215189,8.37787245,112970.0,112960.0,0.04019735]
[1755858215622,7.35918732,112970.0,112960.0,0.04019735]
[1755858220142,8.37787245,112970.0,112960.0,0.04019735]
[1755858220720,7.35918732,112970.0,112960.0,0.04019735]
[1755858220923,7.35917837,112970.0,112960.0,0.04019735]
[1755858221634,7.20985837,112970.0,112960.0,0.04019735]
[1755858221815,0.51705382,112960.0,112950.0,0.03596803]
[1755858222021,7.62257011,112960.0,112950.0,0.03596803]
[1755858222227,7.65667315,112960.0,112950.0,0.03596803]
[1755858222447,7.68330515,112960.0,112950.0,0.03596803]
[1755858222916,7.68330515,112960.0,112950.0,1e-08]
[1755858222917,7.54018262,112960.0,112950.0,1e-08]
[1755858223081,7.70602935,112960.0,112950.0,1e-08]
[1755858223260,7.70702935,112960.0,112950.0,1e-08]
[1755858223841,7.69050262,112960.0,112950.0,1e-08]
[1755858224042,7.70702375,112960.0,112950.0,1e-08]
[1755858224277,7.55770375,112960.0,112950.0,1e-08]
[1755858224480,6.68833618,112960.0,112950.0,1e-08]
[1755858224776,6.68833618,112960.0,112940.0,0.03704773]
[1755858224777,0.51706949,112950.0,112940.0,0.03704773]
[1755858225087,5.66593389,112950.0,112940.0,0.03704773]
[1755858225289,0.51708517,112940.0,112930.0,0.03776742]
[1755858225608,6.6090673,112940.0,112930.0,0.03776742]
[1755858225996,6.6357053,112940.0,112930.0,0.03776742]
[1755858226336,6.29654675,112940.0,112930.0,0.03776742]
[1755858226535,6.32831322,112940.0,112930.0,0.03776742]
[1755858227588,6.32931322,112940.0,112930.0,0.03776742]
[1755858228774,6.33031322,112940.0,112930.0,0.03776742]
[1755858229947,6.18099322,112940.0,112930.0,0.03776742]
[1755858230149,6.33031322,112940.0,112930.0,0.03776742]
[1755858230356,6.33035322,112940.0,112930.0,0.03776742]
[1755858230817,6.18101322,112940.0,112930.0,0.03776742]
[1755858230971,6.33037322,112940.0,112930.0,0.03776742]
[1755858231179,6.17805322,112940.0,112930.0,0.03776742]
[1755858231602,6.32741322,112940.0,112930.0,0.03776742]
[1755858232262,6.17805322,112940.0,112930.0,0.03776742]
[1755858232389,6.32741322,112940.0,112930.0,0.03776742]
[1755858234044,1.03489455,112940.0,112930.0,0.06041644]
[1755858234685,1.37465784,112940.0,112930.0,0.06041644]
[1755858236100,1.37465784,112940.0,112930.0,0.04296742]
[1755858237665,1.22529784,112940.0,112930.0,0.04296742]
[1755858237882,0.54577126,112940.0,112930.0,0.04296742]
[1755858238096,1.37465784,112940.0,112930.0,0.06041644]
[1755858239358,1.39119361,112940.0,112930.0,0.06041644]
[1755858239768,1.24183361,112940.0,112930.0,0.06041644]
[1755858239983,1.03489455,112940.0,112930.0,0.06041644]
[1755858240764,1.04875894,112940.0,112930.0,0.06041644]
[1755858242880,1.13562859,112940.0,112930.0,0.06041644]
[1755858243091,1.04875894,112940.0,112930.0,0.06041644]
[1755858243488,1.23916223,112940.0,112930.0,0.06041644]
[1755858243688,1.38852223,112940.0,112930.0,0.06041644]
[1755858244307,1.40507903,112940.0,112930.0,0.06041644]
[1755858247162,6.26209704,112940.0,112930.0,0.06041644]
[1755858247539,6.26210491,112940.0,112930.0,0.06041644]
[1755858248571,6.35099456,112940.0,112930.0,0.05521644]
[1755858248812,6.41930825,112940.0,112930.0,0.05521644]
[1755858249699,6.41930825,112940.0,112930.0,0.03776742]
[1755858250530,6.40274358,112940.0,112930.0,0.03780742]
[1755858250747,6.41931832,112940.0,112930.0,0.03780742]
[1755858251261,5.73979685,112940.0,112930.0,0.03780742]
[1755858251416,6.40274826,112940.0,112930.0,0.03780742]
[1755858251611,6.419324,112940.0,112930.0,0.03780742]
[1755858252823,6.079324,112940.0,112930.0,0.03780742]
[1755858253233,6.419324,112940.0,112930.0,0.03780742]
[1755858256064,6.269964,112940.0,112930.0,0.03780742]
[1755858256268,6.079324,112940.0,112930.0,0.03780742]
[1755858256509,6.419324,112940.0,112930.0,0.03780742]
[1755858256918,6.41933147,112940.0,112930.0,0.03780742]
[1755858258319,6.48745147,112940.0,112930.0,0.03780742]
[1755858259809,6.47087045,112940.0,112930.0,0.03780742]
[1755858260001,6.48745088,112940.0,112930.0,0.03780742]
[1755858260404,6.4874508,112940.0,112930.0,0.03780742]
[1755858263050,6.48745066,112940.0,112930.0,0.03780742]
[1755858264056,6.48744905,112940.0,112930.0,0.03780742]
[1755858264478,7.16693623,112940.0,112930.0,0.03780742]
[1755858266202,7.16693624,112940.0,112930.0,0.03780742]
[1755858267014,7.01757624,112940.0,112930.0,0.03780742]
[1755858267245,7.84644312,112940.0,112930.0,0.03780742]
[1755858268109,0.51710085,112930.0,112920.0,1.57443712]
[1755858268339,6.62443252,112930.0,112920.0,1.57443712]
[1755858268773,6.65106952,112930.0,112920.0,1.57443712]
[1755858269175,6.48513025,112930.0,112920.0,1.57443712]
[1755858269401,6.65106593,112930.0,112920.0,1.57543712]
[1755858270273,7.70739929,112930.0,112920.0,1.57543712]
[1755858270482,7.55803929,112930.0,112920.0,1.57543712]
[1755858270683,7.70739929,112930.0,112920.0,1.57543712]
[1755858270921,6.68813897,112930.0,112920.0,1.57543712]
[1755858272311,6.70231994,112930.0,112920.0,1.57543712]
[1755858273287,6.70231994,112930.0,112920.0,1.57443712]
[1755858273698,6.36646153,112930.0,112920.0,1.57543712]
[1755858275164,6.36149153,112930.0,112920.0,1.57443712]
[1755858275361,6.70134994,112930.0,112920.0,1.57443712]
[1755858275598,6.70034994,112930.0,112920.0,1.57443712]
[1755858275804,6.36346153,112930.0,112920.0,1.57443712]
[1755858276216,6.70431994,112930.0,112920.0,1.57443712]
[1755858276422,6.69045388,112930.0,112920.0,1.57443712]
[1755858276648,6.69145388,112930.0,112920.0,1.57443712]
[1755858276864,6.69145388,112930.0,112920.0,1.08370351]
[1755858277059,6.69973357,112930.0,112920.0,0.94172974]
[1755858277268,6.69973357,112930.0,112920.0,0.7892247]
[1755858277469,6.6496903,112930.0,112920.0,0.7892247]
[1755858277682,6.64141061,112930.0,112920.0,0.7892247]
[1755858277885,6.66048218,112930.0,112920.0,0.38798749]
[1755858278009,6.66875971,112930.0,112920.0,0.38798749]
[1755858278209,6.66875971,112930.0,112920.0,1e-08]
[1755858278419,6.6604821,112930.0,112920.0,1e-08]
[1755858278633,6.66875219,112930.0,112920.0,1e-08]
[1755858279087,6.66874725,112930.0,112920.0,1e-08]
[1755858279647,6.68261485,112930.0,112920.0,1e-08]
[1755858280053,6.53325485,112930.0,112920.0,1e-08]
[1755858280235,6.68261485,112930.0,112920.0,1e-08]
[1755858280530,6.53325485,112930.0,112920.0,1e-08]
[1755858280713,6.68261485,112930.0,112920.0,1e-08]
[1755858280939,6.53325485,112930.0,112920.0,1e-08]
[1755858281085,6.68261485,112930.0,112920.0,1e-08]
[1755858281291,6.66354328,112930.0,112920.0,1e-08]
[1755858281539,6.66353173,112930.0,112920.0,1e-08]
[1755858281884,6.51417173,112930.0,112920.0,1e-08]
[1755858282090,6.66056173,112930.0,112920.0,1e-08]
[1755858282303,6.67962345,112930.0,112920.0,1e-08]
[1755858282501,6.68259345,112930.0,112920.0,1e-08]
[1755858284366,6.66353173,112930.0,112920.0,1e-08]
[1755858284716,6.66353014,112930.0,112920.0,1e-08]
[1755858286995,6.68258633,112930.0,112920.0,1e-08]
[1755858287538,6.67638134,112930.0,112920.0,1e-08]
[1755858287737,6.6687109,112930.0,112920.0,1e-08]
[1755858288369,6.65944009,112930.0,112920.0,1e-08]
[1755858288571,6.66771006,112930.0,112920.0,1e-08]
[1755858288767,6.66971006,112930.0,112920.0,0.00100001]
[1755858289176,6.66971006,112930.0,112920.0,1e-08]
[1755858289177,6.66771006,112930.0,112920.0,1e-08]
[1755858289373,6.66571006,112930.0,112920.0,1e-08]
[1755858289575,6.66771006,112930.0,112920.0,1e-08]
[1755858290637,6.66971006,112930.0,112920.0,0.00100001]
[1755858290846,6.68357787,112930.0,112920.0,0.00100001]
[1755858291094,6.68357787,112930.0,112920.0,1e-08]
[1755858291294,0.55143739,112920.0,112910.0,0.04236682]
[1755858291494,6.72310489,112920.0,112910.0,0.04442682]
[1755858292135,6.51149024,112920.0,112910.0,0.04442682]
[1755858292406,6.32103183,112920.0,112910.0,0.04442682]
[1755858292616,6.32199183,112920.0,112910.0,0.04442682]
[1755858293039,6.31372134,112920.0,112910.0,0.04442682]
[1755858293460,6.32199396,112920.0,112910.0,0.04442682]
[1755858293862,6.47702865,112920.0,112910.0,0.04442682]
[1755858296540,6.49609918,112920.0,112910.0,0.04442682]
[1755858296958,6.49611654,112920.0,112910.0,0.04442682]
[1755858297163,6.47704601,112920.0,112910.0,0.04442682]
[1755858297367,6.47956612,112920.0,112910.0,0.04442682]
[1755858297547,6.49612374,112920.0,112910.0,0.04442682]
[1755858297782,6.34676374,112920.0,112910.0,0.04442682]
[1755858297997,6.49616374,112920.0,112910.0,0.04442682]
[1755858298212,6.34676374,112920.0,112910.0,0.04442682]
[1755858298416,6.49616374,112920.0,112910.0,0.04442682]
[1755858298830,0.30396391,112920.0,112910.0,0.06187584]
[1755858299037,0.76213995,112920.0,112910.0,0.06187584]
[1755858299458,0.61277995,112920.0,112910.0,0.06187584]
[1755858299665,0.76217995,112920.0,112910.0,0.06187584]
[1755858300049,1.10217995,112920.0,112910.0,0.06187584]
[1755858300204,0.76217995,112920.0,112910.0,0.06187584]
[1755858300424,1.10217995,112920.0,112910.0,0.06187584]
[1755858301667,0.54476154,112920.0,112910.0,0.06187584]
[1755858301867,0.001,112920.0,112910.0,0.23900806]
[1755858302087,0.014866,112920.0,112910.0,0.23900806]
[1755858302344,0.014866,112920.0,112910.0,0.32589281]
[1755858302584,0.014866,112920.0,112910.0,0.66575122]
[1755858302816,0.014866,112920.0,112910.0,0.32589281]
[1755858303019,0.014866,112920.0,112910.0,0.41276246]
[1755858303249,0.014866,112920.0,112910.0,0.32589281]
[1755858303463,0.014866,112920.0,112910.0,0.36710665]
[1755858303679,0.013866,112920.0,112910.0,0.36610665]
[1755858304136,0.013866,112920.0,112910.0,0.36910665]
[1755858304412,0.013866,112920.0,112910.0,0.32889281]
[1755858304945,0.35372441,112920.0,112910.0,0.32989281]
[1755858308987,0.33985841,112920.0,112910.0,0.35652381]
[1755858309304,0.35372375,112920.0,112910.0,0.35652381]
[1755858309523,0.35372375,112920.0,112910.0,0.62322381]
[1755858309957,0.35372375,112920.0,112910.0,0.59659281]
[1755858310154,0.35372375,112920.0,112910.0,0.41946059]
[1755858310649,0.01386534,112920.0,112910.0,0.59659281]
[1755858310876,0.35372375,112920.0,112910.0,0.59659281]
[1755858311105,0.35372375,112920.0,112910.0,0.41946059]
[1755858312055,0.35372375,112920.0,112910.0,0.59659281]
[1755858313769,0.01386534,112920.0,112910.0,0.59659281]
[1755858313994,0.01386534,112920.0,112910.0,0.68346246]
[1755858314253,0.35372375,112920.0,112910.0,0.59659281]
[1755858315213,0.01386534,112920.0,112910.0,0.59659281]
[1755858315442,0.35372375,112920.0,112910.0,0.59659281]
[1755858318746,0.35372375,112920.0,112910.0,0.63598856]
[1755858320213,0.01386534,112920.0,112910.0,0.63598856]
[1755858321159,0.35372375,112920.0,112910.0,0.63598856]
[1755858322112,0.01386534,112920.0,112910.0,0.63598856]
[1755858322316,0.01386534,112920.0,112910.0,1.06271662]
[1755858322746,0.01386534,112920.0,112910.0,1.08934562]
[1755858323207,0.01386534,112920.0,112910.0,0.74848721]
[1755858323413,0.01386534,112920.0,112910.0,0.74748721]
[1755858323559,0.01486534,112920.0,112910.0,0.74748721]
[1755858324219,0.01486534,112920.0,112910.0,0.75148721]
[1755858325029,0.35472375,112920.0,112910.0,0.75148721]
[1755858326677,0.01486534,112920.0,112910.0,0.75148721]
[1755858326812,0.35472375,112920.0,112910.0,0.75148721]
[1755858327199,0.35472375,112920.0,112910.0,0.66461756]
[1755858328215,0.35472375,112920.0,112910.0,0.81397756]
[1755858328415,0.35472375,112920.0,112910.0,0.8618332]
[1755858328615,0.35472375,112920.0,112910.0,0.7124732]
[1755858328844,0.35472375,112920.0,112910.0,0.8618332]
[1755858333178,0.35472375,112920.0,112910.0,0.8617932]
[1755858333380,0.69655216,112920.0,112910.0,0.6858442]
[1755858333628,0.69655216,112920.0,112910.0,0.8351642]
[1755858336262,0.69655216,112920.0,112910.0,0.59373945]
[1755858336460,0.69655216,112920.0,112910.0,0.69520381]
[1755858338990,0.69655216,112920.0,112910.0,0.42850381]
[1755858339197,0.68268682,112920.0,112910.0,0.42850381]
[1755858339600,0.68168682,112920.0,112910.0,0.42850381]
[1755858339806,0.00197,112920.0,112910.0,0.46279892]
[1755858340020,0.00309,112930.0,112920.0,0.01744902]
[1755858340219,0.00506,112930.0,112920.0,0.01966297]
[1755858340442,0.00197,112930.0,112920.0,0.19677951]
[1755858340638,0.00197,112930.0,112920.0,0.19456556]
[1755858340844,0.00197,112930.0,112920.0,0.25834311]
[1755858341053,0.34182841,112930.0,112920.0,0.08122657]
[1755858341255,0.34282841,112930.0,112920.0,0.08344052]
[1755858341461,0.51992926,112930.0,112920.0,0.08344052]
[1755858341657,0.34282841,112930.0,112920.0,0.08344052]
[1755858342104,0.35669251,112930.0,112920.0,0.08344052]
[1755858342311,0.35669251,112930.0,112920.0,0.19991951]
[1755858342517,0.35669251,112930.0,112920.0,0.20072556]
[1755858342720,0.35669251,112930.0,112920.0,0.19770556]
[1755858343334,0.35472251,112930.0,112920.0,0.28761031]
[1755858343540,0.35472251,112930.0,112920.0,0.35979033]
[1755858343745,0.35472251,112930.0,112920.0,0.28761031]
[1755858349553,0.35472251,112930.0,112920.0,0.31954231]
[1755858357831,0.34085841,112930.0,112920.0,0.31954231]
[1755858358256,0.001,112930.0,112920.0,0.31954231]
[1755858358459,0.34085841,112930.0,112920.0,0.31954231]
[1755858358664,0.34085841,112930.0,112920.0,0.40641196]
[1755858360939,0.35472165,112930.0,112920.0,0.40641196]
[1755858361554,0.35679165,112930.0,112920.0,0.40641196]
[1755858361738,0.35679165,112930.0,112920.0,0.55573196]
[1755858364079,0.35679165,112930.0,112920.0,0.40641196]
[1755858364232,0.35679165,112930.0,112920.0,0.31954231]
[1755858364436,0.35679165,112930.0,112920.0,0.46886231]
[1755858364846,0.39314794,112930.0,112920.0,0.28658577]
[1755858365225,0.35994165,112930.0,112920.0,0.28658577]
[1755858365626,0.35994165,112930.0,112920.0,0.46370231]
[1755858366868,0.35679165,112930.0,112920.0,0.46370231]
[1755858367221,0.35994165,112930.0,112920.0,0.46370231]
[1755858367615,0.19718409,112930.0,112920.0,0.13726577]
[1755858367835,0.9101072,112930.0,112920.0,0.19970102]
[1755858368031,0.5370425,112930.0,112920.0,0.05038102]
[1755858368463,0.5370425,112930.0,112920.0,0.19970102]
[1755858369513,0.87690091,112930.0,112920.0,0.19970102]
[1755858369718,0.86303767,112930.0,112920.0,0.19970102]
[1755858370314,0.52317926,112930.0,112920.0,0.19970102]